bitfinex/quotes_ETHUSD_20251215
["timestamp","ask_amount","ask_price","bid_price","bid_amount"]
[1765769254886,15.4727886,3123.0,3122.9,0.3468]
[1765769256087,15.4726876,3123.0,3122.9,0.3468]
[1765769256489,7.6195416,3123.0,3122.9,0.3468]
[1765769256793,3.837017,3123.0,3122.9,0.1739]
[1765769257010,0.911504,3123.0,3122.9,0.3468]
[1765769257394,0.911504,3123.0,3122.9,3.54895184]
[1765769257395,0.506,3123.0,3122.9,3.54895184]
[1765769257705,0.506,3123.0,3122.9,4.66771645]
[1765769258803,0.506,3123.0,3122.9,1.46556461]
[1765769259816,0.506,3123.0,3122.9,0.3468]
[1765769260582,0.506,3123.0,3122.9,3.54895184]
[1765769263816,0.506,3123.0,3122.9,0.3468]
[1765769264114,28.64629031,3123.0,3122.9,0.001]
[1765769264910,28.17169031,3123.0,3122.9,0.1739]
[1765769265096,29.42032531,3123.0,3122.9,0.001]
[1765769265418,30.4667006,3123.0,3122.9,0.001]
[1765769265606,24.7172786,3123.0,3122.9,0.001]
[1765769265805,29.28106654,3123.0,3122.9,0.001]
[1765769266191,40.19831654,3123.0,3122.9,0.001]
[1765769269696,40.19794708,3123.0,3122.9,0.001]
[1765769272705,46.52294708,3123.0,3122.9,0.001]
[1765769277512,42.08779518,3123.0,3122.9,0.001]
[1765769278226,45.45979518,3123.0,3122.9,0.001]
[1765769278432,42.08779518,3123.0,3122.9,0.001]
[1765769285725,12.08779518,3123.0,3122.9,0.001]
[1765769285930,42.08779518,3123.0,3122.9,0.001]
[1765769289832,12.08779518,3123.0,3122.9,0.001]
[1765769290033,42.08779518,3123.0,3122.9,0.001]
[1765769290844,12.08779518,3123.0,3122.9,0.001]
[1765769291036,42.08779518,3123.0,3122.9,0.001]
[1765769292132,42.08779518,3123.0,3122.3,0.001]
[1765769292133,24.21687688,3122.2,3121.9,0.1729]
[1765769292318,24.72287688,3122.2,3122.0,0.3542]
[1765769292519,24.72287688,3122.2,3122.1,0.3468]
[1765769292721,30.98597929,3122.1,3122.0,0.1813]
[1765769292921,34.18895164,3122.1,3122.0,0.1813]
[1765769293943,30.51622864,3122.1,3122.0,0.1813]
[1765769294348,29.00494464,3122.1,3122.0,0.1813]
[1765769294543,8.43810764,3122.1,3122.0,0.1813]
[1765769294750,7.71135864,3122.1,3122.0,0.1813]
[1765769294960,4.18895164,3122.1,3122.0,0.1813]
[1765769295136,17.54788264,3122.1,3122.0,0.1813]
[1765769295933,11.14948529,3122.1,3122.0,0.1813]
[1765769296134,10.61091929,3122.1,3122.0,0.1813]
[1765769296666,0.98597929,3122.1,3122.0,0.1813]
[1765769298155,11.01151429,3122.1,3122.0,0.1813]
[1765769298480,0.98597929,3122.1,3122.0,0.1813]
[1765769301751,3.84501129,3122.1,3122.0,0.1813]
[1765769302565,7.04798364,3122.1,3122.0,0.1813]
[1765769304567,7.04998364,3122.1,3122.0,0.1813]
[1765769306865,3.84701129,3122.1,3122.0,0.1813]
[1765769308665,7.04998364,3122.1,3122.0,0.1813]
[1765769309164,3.84701129,3122.1,3122.0,0.1813]
[1765769312568,7.04998364,3122.1,3122.0,0.1813]
[1765769313505,3.84701129,3122.1,3122.0,0.1813]
[1765769314572,0.98797929,3122.1,3122.0,0.1813]
[1765769314780,1.49397929,3122.1,3122.0,0.1813]
[1765769315878,0.508,3122.1,3122.0,0.1813]
[1765769316074,0.508,3122.1,3122.0,3.38437495]
[1765769316378,0.913504,3122.1,3122.0,0.5197375]
[1765769316674,0.913504,3122.1,3122.0,0.1813]
[1765769320777,0.913504,3122.1,3122.0,3.38437495]
[1765769320999,0.913504,3122.1,3122.0,0.1813]
[1765769321676,0.913504,3122.1,3122.0,0.001]
[1765769321847,22.22928264,3122.1,3122.0,0.001]
[1765769322053,21.34895592,3122.1,3122.0,0.001]
[1765769322977,19.16652892,3122.1,3122.0,0.001]
[1765769324065,15.96355657,3122.1,3122.0,0.001]
[1765769324266,13.37048129,3122.1,3122.0,0.001]
[1765769326188,16.57345364,3122.1,3122.0,0.001]
[1765769326984,29.96138864,3122.1,3122.0,0.001]
[1765769327196,15.18767264,3122.1,3122.0,0.001]
[1765769327482,14.69867264,3122.1,3122.0,0.001]
[1765769327991,27.18990964,3122.1,3122.0,0.001]
[1765769328166,26.40011264,3122.1,3122.0,0.001]
[1765769328363,26.15871864,3122.1,3122.0,0.001]
[1765769328570,13.07061064,3122.1,3122.0,0.001]
[1765769328974,4.69695164,3122.1,3122.0,0.001]
[1765769329180,18.25676464,3122.1,3122.0,0.001]
[1765769329890,11.09632164,3122.1,3122.0,0.001]
[1765769330192,8.43861064,3122.1,3122.0,0.001]
[1765769330389,4.69695164,3122.1,3122.0,0.001]
[1765769330562,0.58247529,3122.1,3122.0,0.001]
[1765769330763,1.49397929,3122.1,3122.0,0.001]
[1765769334396,4.78950629,3122.1,3122.0,0.001]
[1765769335892,7.99247864,3122.1,3122.0,0.001]
[1765769337596,41.91260146,3122.1,3122.0,0.001]
[1765769337974,37.60535316,3122.1,3122.0,0.001]
[1765769338503,16.18961816,3122.1,3122.0,0.001]
[1765769338672,14.40161816,3122.1,3122.0,0.001]
[1765769339023,8.85403916,3122.1,3122.0,0.001]
[1765769339169,1.11628866,3122.1,3122.0,0.001]
[1765769339480,0.98797929,3122.1,3122.0,0.001]
[1765769339687,1.49397929,3122.1,3122.0,0.001]
[1765769342371,27.45449164,3122.1,3122.0,0.001]
[1765769343393,5.67515164,3122.1,3122.0,0.001]
[1765769343570,30.10765464,3122.1,3122.0,0.001]
[1765769344499,31.43855064,3122.1,3122.0,0.001]
[1765769345603,35.67515164,3122.1,3122.0,0.001]
[1765769345799,40.11070931,3122.1,3122.0,0.001]
[1765769346296,46.43570931,3122.1,3122.0,0.001]
[1765769347206,50.87568342,3122.1,3122.0,0.001]
[1765769348081,0.405504,3121.8,3121.6,0.001]
[1765769348282,36.02556989,3121.7,3121.6,0.001]
[1765769348482,40.29382795,3121.7,3121.6,0.001]
[1765769348687,40.42217026,3121.7,3121.6,0.001]
[1765769355605,10.42217026,3121.7,3121.6,0.001]
[1765769355808,35.98440437,3121.7,3121.6,0.001]
[1765769356022,31.92574637,3121.7,3121.6,0.001]
[1765769356892,35.98440437,3121.7,3121.6,0.001]
[1765769359821,5.98440437,3121.7,3121.6,0.001]
[1765769360025,37.44863086,3121.7,3121.6,0.001]
[1765769361522,43.77363086,3121.7,3121.6,0.001]
[1765769362930,13.77363086,3121.7,3121.6,0.001]
[1765769363113,43.77363086,3121.7,3121.6,0.001]
[1765769369540,0.98597929,3121.4,3121.2,0.001]
[1765769369853,40.82201107,3121.3,3121.2,0.001]
[1765769370150,40.95038056,3121.3,3121.2,0.001]
[1765769370321,41.41258056,3121.3,3121.2,0.001]
[1765769370833,30.98597929,3121.2,3121.1,0.001]
[1765769371032,33.36690578,3121.2,3121.1,0.001]
[1765769371428,36.69916708,3121.2,3121.1,0.001]
[1765769373059,36.70883467,3121.2,3121.1,0.001]
[1765769374236,35.79213467,3121.2,3121.1,0.001]
[1765769374447,37.21483467,3121.2,3121.1,0.001]
[1765769374652,36.75263467,3121.2,3121.1,0.001]
[1765769374849,37.21483467,3121.2,3121.1,0.001]
[1765769376032,41.65260056,3121.2,3121.1,0.001]
[1765769379363,11.65260056,3121.2,3121.1,0.001]
[1765769379561,41.65260056,3121.2,3121.1,0.001]
[1765769384169,41.65460056,3121.2,3121.1,0.001]
[1765769385767,46.09978811,3121.2,3121.1,0.001]
[1765769387566,16.09978811,3121.2,3121.1,0.001]
[1765769387772,46.09978811,3121.2,3121.1,0.001]
[1765769388168,7.30997929,3121.1,3121.0,0.001]
[1765769388374,39.89398976,3121.1,3121.0,0.001]
[1765769388770,40.02236832,3121.1,3121.0,0.001]
[1765769389675,43.22636691,3121.1,3121.0,0.001]
[1765769393859,13.22636691,3121.1,3121.0,0.001]
[1765769394175,43.22636691,3121.1,3121.0,0.001]
[1765769395878,13.22636691,3121.1,3121.0,0.001]
[1765769396051,43.22636691,3121.1,3121.0,0.001]
[1765769399364,47.66830545,3121.1,3121.0,0.001]
[1765769399764,47.83572095,3121.1,3121.0,0.001]
[1765769400567,47.83772095,3121.1,3121.0,0.001]
[1765769401280,48.34372095,3121.1,3121.0,0.001]
[1765769401474,48.34372095,3121.1,3119.8,0.001]
[1765769401475,30.98597929,3121.0,3119.8,0.001]
[1765769401784,33.42367337,3121.0,3119.8,0.001]
[1765769401979,36.62777461,3121.0,3119.8,0.001]
[1765769402182,36.75616265,3121.0,3119.8,0.001]
[1765769403987,6.75616265,3121.0,3119.8,0.001]
[1765769404282,36.75616265,3121.0,3119.8,0.001]
[1765769404987,6.75616265,3121.0,3119.8,0.001]
[1765769405159,36.75616265,3121.0,3119.8,0.001]
[1765769405359,35.79236265,3121.0,3119.8,0.001]
[1765769405565,9.49774187,3121.0,3119.8,0.001]
[1765769405872,6.04550483,3121.0,3119.9,4.44193854]
[1765769406077,8.98513112,3121.0,3120.0,6.4102564]
[1765769406870,8.65265312,3121.0,3120.0,3.2051282]
[1765769407070,14.61534612,3121.0,3120.0,3.2051282]
[1765769407983,14.61534612,3121.0,3119.8,0.001]
[1765769408192,19.05162112,3121.0,3119.8,0.001]
[1765769409094,34.70574812,3121.0,3119.8,0.001]
[1765769409393,25.49937612,3121.0,3119.8,0.001]
[1765769409574,20.23017512,3121.0,3119.8,0.001]
[1765769409984,13.58332588,3121.0,3119.8,0.001]
[1765769410185,13.58332588,3121.0,3120.3,4.44293854]
[1765769410186,0.51566759,3121.0,3120.3,4.44293854]
[1765769411597,0.92117159,3121.0,3120.3,0.001]
[1765769413863,19.25351583,3121.0,3120.3,0.001]
[1765769414096,19.83399112,3121.0,3120.3,0.001]
[1765769414965,32.13824812,3121.0,3120.3,0.001]
[1765769415168,31.81754612,3121.0,3120.3,0.001]
[1765769415964,33.87671212,3121.0,3120.3,0.001]
[1765769416996,34.19869812,3121.0,3120.3,0.001]
[1765769417292,33.87999612,3121.0,3120.3,0.001]
[1765769417692,14.55483312,3121.0,3120.3,0.001]
[1765769417993,8.18170412,3121.0,3120.3,0.001]
[1765769419196,3.21576883,3121.0,3120.3,0.001]
[1765769419370,4.30224412,3121.0,3120.3,0.001]
[1765769419568,1.50364688,3121.0,3120.3,0.001]
[1765769419772,0.01166759,3121.0,3120.3,0.001]
[1765769419994,0.51766759,3121.0,3120.3,0.001]
[1765769420304,0.92317159,3121.0,3120.3,0.001]
[1765769421701,4.12727283,3121.0,3120.3,0.001]
[1765769429601,0.92317159,3121.0,3120.3,0.001]
[1765769429785,4.12727283,3121.0,3120.3,0.001]
[1765769431290,0.92317159,3121.0,3120.3,0.001]
[1765769431605,4.12727283,3121.0,3120.3,0.001]
[1765769432821,0.508,3121.0,3120.3,0.001]
[1765769435182,3.71210124,3121.0,3120.3,0.001]
[1765769435714,0.508,3121.0,3120.3,0.001]
[1765769438714,4.11760524,3121.0,3120.3,0.001]
[1765769439913,35.66778053,3121.0,3120.3,0.001]
[1765769440414,34.86395453,3121.0,3120.3,0.001]
[1765769441143,35.66778053,3121.0,3120.3,0.001]
[1765769447020,5.66778053,3121.0,3120.3,0.001]
[1765769447226,35.66778053,3121.0,3120.3,0.001]
[1765769448019,5.66778053,3121.0,3120.3,0.001]
[1765769448218,37.00017475,3121.0,3120.3,0.001]
[1765769452928,30.405504,3120.8,3120.3,0.001]
[1765769453228,39.31015471,3120.8,3120.3,0.001]
[1765769453399,39.78985471,3120.8,3120.3,0.001]
[1765769453594,39.91824233,3120.8,3120.3,0.001]
[1765769453809,41.71738507,3120.8,3120.3,0.001]
[1765769454500,48.04138507,3120.8,3120.3,0.001]
[1765769455834,48.54738507,3120.8,3120.3,0.001]
[1765769457332,48.04138507,3120.8,3120.3,0.001]
[1765769457629,48.53958507,3120.8,3120.3,0.001]
[1765769457833,48.03358507,3120.8,3120.3,0.001]
[1765769458030,48.53958507,3120.8,3120.6,0.001]
[1765769459233,45.89430578,3120.8,3120.6,0.001]
[1765769459434,19.26163632,3120.8,3120.6,0.001]
[1765769459602,20.72361561,3120.8,3120.6,0.001]
[1765769459807,20.31811161,3120.8,3120.6,0.001]
[1765769460024,19.84211161,3120.8,3120.6,0.001]
[1765769460304,42.81942861,3120.8,3120.6,0.001]
[1765769460930,31.33451461,3120.8,3120.6,0.001]
[1765769461336,42.81942861,3120.8,3120.6,0.001]
[1765769461538,47.73656622,3120.8,3120.6,0.001]
[1765769461927,30.98597929,3120.7,3120.6,0.001]
[1765769462111,33.26627351,3120.7,3120.6,0.001]
[1765769462311,18.99794036,3120.7,3120.6,0.001]
[1765769462638,18.97006151,3120.7,3120.6,0.001]
[1765769463143,19.37556551,3120.7,3120.6,0.001]
[1765769463312,28.46241377,3120.7,3120.6,0.001]
[1765769463672,29.41998136,3120.7,3120.6,0.001]
[1765769464337,33.86111897,3120.7,3120.6,0.001]
[1765769464539,7.11474004,3120.7,3120.6,0.001]
[1765769464721,37.11474004,3120.7,3120.6,0.001]
[1765769464922,41.5572178,3120.7,3120.6,0.001]
[1765769465427,11.5572178,3120.7,3120.6,0.001]
[1765769465611,41.5572178,3120.7,3120.6,0.001]
[1765769466243,0.405504,3120.3,3119.8,0.001]
[1765769466425,35.91412464,3119.9,3119.8,0.001]
[1765769466822,35.43812464,3119.9,3119.8,0.001]
[1765769467022,5.22680329,3119.9,3119.8,0.001]
[1765769467542,39.13968798,3119.9,3119.8,0.001]
[1765769468111,37.38614498,3119.9,3119.8,0.001]
[1765769468525,37.23370398,3119.9,3119.8,0.001]
[1765769468724,35.82206498,3119.9,3119.8,0.001]
[1765769468949,28.36376722,3119.9,3119.8,0.001]
[1765769469146,25.07647222,3119.9,3119.8,0.001]
[1765769469440,4.19121022,3119.9,3119.8,0.001]
[1765769469635,23.43423122,3119.9,3119.8,0.001]
[1765769470343,22.44928322,3119.9,3119.8,0.001]
[1765769470839,18.59857698,3119.9,3119.8,0.001]
[1765769471551,19.24013698,3119.9,3119.8,0.001]
[1765769471920,13.39853398,3119.9,3119.8,0.001]
[1765769472226,8.95605622,3119.9,3119.8,0.001]
[1765769472614,18.86340722,3119.9,3119.8,0.001]
[1765769472814,11.38419722,3119.9,3119.8,0.001]
[1765769473029,10.74253722,3119.9,3119.8,0.001]
[1765769473345,10.41870722,3119.9,3119.8,0.001]
[1765769473741,8.55928222,3119.9,3119.8,0.001]
[1765769474444,6.93042622,3119.9,3119.8,0.001]
[1765769474648,8.56270522,3119.9,3119.8,0.001]
[1765769475152,8.01573522,3119.9,3119.8,0.001]
[1765769475543,4.19121022,3119.9,3119.8,0.001]
[1765769475842,13.87244722,3119.9,3119.8,0.001]
[1765769476152,7.17279922,3119.9,3119.8,0.001]
[1765769476927,30.51351222,3119.9,3119.8,0.001]
[1765769477217,29.33725422,3119.9,3119.8,0.001]
[1765769477941,4.69721022,3119.9,3119.8,0.001]
[1765769478120,29.33725422,3119.9,3119.8,0.001]
[1765769478323,30.66964844,3119.9,3119.8,0.001]
[1765769478838,31.81374844,3119.9,3119.8,0.001]
[1765769479047,37.17370444,3119.9,3119.8,0.001]
[1765769481132,21.76795644,3119.9,3119.8,0.001]
[1765769481349,19.09772744,3119.9,3119.8,0.001]
[1765769481656,23.0642052,3119.9,3119.8,0.001]
[1765769482352,31.1402452,3119.9,3119.8,0.001]
[1765769482563,32.0881452,3119.9,3119.8,0.001]
[1765769482724,21.03373944,3119.9,3119.8,0.001]
[1765769483226,30.21932944,3119.9,3119.8,0.001]
[1765769483955,12.43948844,3119.9,3119.8,0.001]
[1765769484163,30.35968844,3119.9,3119.8,0.001]
[1765769484465,21.78313822,3119.9,3119.8,0.001]
[1765769484824,22.25913822,3119.9,3119.8,0.001]
[1765769485227,35.64511022,3119.9,3119.8,0.001]
[1765769489035,35.13911022,3119.9,3119.8,0.001]
[1765769489349,35.64511022,3119.9,3119.8,0.001]
[1765769489528,35.77351927,3119.9,3119.8,0.001]
[1765769490554,34.77481927,3119.9,3119.8,0.001]
[1765769490753,38.28311774,3119.9,3119.8,0.001]
[1765769491055,40.22239703,3119.9,3119.8,0.001]
[1765769491256,10.22239703,3119.9,3119.8,0.001]
[1765769491556,40.22239703,3119.9,3119.8,0.001]
[1765769494457,44.66487479,3119.9,3119.8,0.001]
[1765769494665,40.22239703,3119.9,3119.8,0.001]
[1765769499539,1.44117929,3119.5,3119.4,1e-08]
[1765769499739,40.8428024,3119.5,3119.4,1e-08]
[1765769500026,41.3409024,3119.5,3119.4,1e-08]
[1765769500468,41.46934609,3119.5,3119.4,1e-08]
[1765769500653,44.67498801,3119.5,3119.4,1e-08]
[1765769503170,44.68340305,3119.5,3119.4,1e-08]
[1765769503677,0.98597929,3119.4,3119.3,0.001]
[1765769503872,31.93927929,3119.4,3119.3,0.001]
[1765769504433,32.06773082,3119.4,3119.3,0.001]
[1765769504768,35.27347551,3119.4,3119.3,0.001]
[1765769505399,48.09645427,3119.4,3118.5,0.001]
[1765769505556,40.54411744,3118.6,3118.5,0.001]
[1765769505753,35.94933216,3118.6,3118.5,0.001]
[1765769506077,31.12410295,3118.6,3118.5,0.001]
[1765769506267,31.63110295,3118.6,3118.5,0.001]
[1765769506447,36.07778823,3118.6,3118.5,0.001]
[1765769506651,40.23765527,3118.6,3118.5,0.001]
[1765769508253,44.68434055,3118.6,3118.5,0.001]
[1765769508650,43.22404055,3118.6,3118.5,0.001]
[1765769508959,39.28435527,3118.6,3118.5,0.001]
[1765769509376,39.73955527,3118.6,3118.5,0.001]
[1765769509574,39.28435527,3118.6,3118.5,0.001]
[1765769511187,39.73955527,3118.6,3118.5,0.001]
[1765769512276,44.68434055,3118.6,3118.5,0.001]
[1765769512983,40.23765527,3118.6,3118.5,0.001]
[1765769513184,38.77735527,3118.6,3118.5,0.001]
[1765769513489,39.28435527,3118.6,3118.5,0.001]
[1765769514867,9.28435527,3118.6,3118.5,0.001]
[1765769515069,33.8516907,3118.6,3118.5,0.001]
[1765769515400,34.70921392,3118.6,3118.5,0.001]
[1765769515687,34.12873863,3118.6,3118.5,0.001]
[1765769515891,34.70921392,3118.6,3118.5,0.001]
[1765769516660,34.20221392,3118.6,3118.5,0.001]
[1765769516899,34.70921392,3118.6,3118.5,0.001]
[1765769521399,28.26534492,3118.6,3118.5,0.001]
[1765769521869,27.67539892,3118.6,3118.5,0.001]
[1765769522063,35.64321392,3118.6,3118.5,0.001]
[1765769522295,35.77166999,3118.6,3118.5,0.001]
[1765769524894,42.09566999,3118.6,3118.5,0.001]
[1765769528178,12.09566999,3118.6,3118.5,0.001]
[1765769528378,42.09566999,3118.6,3118.5,0.001]
[1765769529092,41.61806999,3118.6,3118.5,0.001]
[1765769529409,41.16166999,3118.6,3118.5,0.001]
[1765769532285,11.16166999,3118.6,3118.5,0.001]
[1765769532480,41.16166999,3118.6,3118.5,0.001]
[1765769534431,42.09566999,3118.6,3118.5,0.001]
[1765769534720,46.54202811,3118.6,3118.5,0.001]
[1765769535227,42.09566999,3118.6,3118.5,0.001]
[1765769536015,35.31835199,3118.6,3118.5,0.001]
[1765769536205,35.72385599,3118.6,3118.5,0.001]
[1765769536403,45.55057223,3118.6,3118.5,0.001]
[1765769536597,44.66438623,3118.6,3118.5,0.001]
[1765769537816,40.21802811,3118.6,3118.5,0.001]
[1765769538216,44.66438623,3118.6,3118.5,0.001]
[1765769538758,14.66438623,3118.6,3118.5,0.001]
[1765769539020,44.66438623,3118.6,3118.5,0.001]
[1765769540126,30.98597929,3118.5,3117.6,0.003]
[1765769540321,35.898405,3118.2,3117.6,0.003]
[1765769540520,36.405405,3118.2,3117.6,0.003]
[1765769540706,36.883005,3118.2,3117.6,0.003]
[1765769541888,40.08998338,3118.2,3117.6,0.003]
[1765769542547,40.08998338,3118.2,3116.8,0.006]
[1765769542548,0.405504,3117.9,3116.8,0.006]
[1765769542842,35.88873741,3117.3,3116.8,0.006]
[1765769543040,39.02027437,3117.3,3116.8,0.006]
[1765769543249,0.405504,3117.1,3116.8,0.006]
[1765769543454,31.44237929,3117.0,3116.8,0.006]
[1765769543815,0.98597929,3116.5,3114.6,3.21065967]
[1765769544020,0.98597929,3116.1,3114.6,3.21065967]
[1765769544325,30.98597929,3116.1,3114.6,3.21065967]
[1765769544513,1.95013053,3116.1,3114.7,0.03210582]
[1765769544713,4.34664529,3116.1,3114.8,4.45378821]
[1765769544948,0.98597929,3116.1,3114.8,4.45378821]
[1765769545164,4.12571829,3116.1,3114.8,4.45378821]
[1765769545371,4.63271829,3116.1,3114.9,0.03210375]
[1765769545741,4.63271829,3116.1,3114.8,4.45378821]
[1765769546071,7.84185791,3116.1,3114.9,6.45285561]
[1765769546352,9.48988691,3116.1,3115.1,0.001]
[1765769547329,21.05265491,3116.1,3115.1,0.001]
[1765769548257,21.09491091,3116.1,3115.1,0.001]
[1765769549166,17.59191091,3116.1,3115.1,0.03310169]
[1765769549374,8.08610591,3116.1,3115.1,0.03310169]
[1765769549531,4.70211891,3116.1,3115.1,0.001]
[1765769550472,0.98597929,3116.1,3115.1,0.03310169]
[1765769550634,4.70211891,3116.1,3115.1,0.001]
[1765769551537,26.70939791,3116.1,3115.1,0.001]
[1765769551735,18.52086429,3116.1,3115.1,0.001]
[1765769552039,1.50264688,3116.1,3115.1,0.001]
[1765769552240,0.99564688,3116.1,3115.3,4.45378821]
[1765769552440,0.00966759,3116.1,3115.5,6.41951532]
[1765769552667,0.51666759,3116.1,3115.5,6.41951532]
[1765769553074,0.92217159,3116.1,3115.2,0.12851426]
[1765769553367,0.92217159,3116.1,3115.4,3.20983599]
[1765769553577,4.13131121,3116.1,3115.4,3.20983599]
[1765769553859,22.96509521,3116.1,3115.3,3.20993209]
[1765769554562,22.96509521,3116.1,3115.1,0.001]
[1765769554563,22.41814521,3116.1,3115.1,0.001]
[1765769554872,16.26729359,3116.1,3115.1,0.001]
[1765769555876,19.47643321,3116.1,3115.1,0.001]
[1765769556968,12.76429359,3116.1,3115.1,0.001]
[1765769557155,12.76429359,3116.1,3115.1,4.45478821]
[1765769557156,0.92217159,3116.1,3115.1,4.45478821]
[1765769557357,0.92217159,3116.1,3115.2,0.03210066]
[1765769557567,0.92217159,3116.1,3115.1,4.45478821]
[1765769557755,0.00966759,3116.1,3115.4,4.45378821]
[1765769557953,0.51666759,3116.1,3115.4,4.45378821]
[1765769558352,0.00966759,3116.3,3116.0,4.45478821]
[1765769558560,0.507,3116.1,3116.0,4.45478821]
[1765769558794,0.507,3116.1,3116.0,0.001]
[1765769559752,0.00966759,3116.5,3116.0,0.001]
[1765769559958,0.507,3116.4,3116.0,4.45478821]
[1765769560384,0.507,3116.5,3116.0,4.45478821]
[1765769560585,0.00966759,3116.4,3116.1,1.4082825]
[1765769560790,0.00966759,3116.4,3116.0,0.001]
[1765769565373,0.00966759,3116.2,3116.0,0.001]
[1765769577284,15.544336,3116.1,3116.0,0.001]
[1765769577490,9.42166229,3116.1,3116.0,0.001]
[1765769577790,9.89216229,3116.1,3116.0,0.001]
[1765769577990,11.52415583,3116.1,3116.0,0.001]
[1765769578181,22.04770883,3116.1,3116.0,0.001]
[1765769578989,25.25684845,3116.1,3116.0,0.001]
[1765769579286,30.67264445,3116.1,3116.0,0.001]
[1765769579491,28.70660545,3116.1,3116.0,0.001]
[1765769580459,28.50442645,3116.1,3116.0,0.001]
[1765769580890,13.26933645,3116.1,3116.0,0.001]
[1765769581088,14.18024891,3116.1,3116.0,0.001]
[1765769581388,1.49297929,3116.1,3116.0,0.001]
[1765769581790,0.00966759,3116.2,3116.0,0.001]
[1765769582004,0.00966759,3116.3,3116.0,0.001]
[1765769582171,0.00966759,3116.7,3116.0,0.001]
[1765769582172,0.507,3116.4,3116.1,0.44547882]
[1765769582372,0.00966759,3116.9,3116.1,4.89447232]
[1765769582691,0.507,3116.9,3116.4,4.4489935]
[1765769583212,0.507,3117.3,3116.5,3.20872773]
[1765769583368,0.507,3117.3,3116.5,7.65592862]
[1765769583687,0.507,3117.3,3116.5,8.74240615]
[1765769585090,0.507,3117.3,3116.5,13.77008233]
[1765769585476,0.507,3117.3,3116.5,11.04150993]
[1765769585674,0.00966759,3117.8,3116.5,11.04150993]
[1765769585886,0.51666759,3117.8,3116.5,11.04150993]
[1765769587193,0.507,3117.8,3117.1,9.6243303]
[1765769588100,1.2,3117.5,3117.1,9.6243303]
[1765769588301,1.2,3117.5,3117.2,1.57901597]
[1765769590097,1.2,3117.5,3117.3,3.20790427]
[1765769594599,1.2,3117.5,3117.3,3.15790427]
[1765769596232,0.94216759,3117.4,3117.3,3.15790427]
[1765769596534,0.47166759,3117.4,3116.8,0.58047529]
[1765769596734,0.00966759,3117.2,3116.9,0.69975131]
[1765769597200,0.507,3117.3,3116.9,0.69975131]
[1765769597391,1.2,3117.5,3116.9,0.69975131]
[1765769597714,1.2,3117.5,3117.0,0.03208213]
[1765769599088,1.2,3117.5,3117.1,6.4162202]
[1765769599299,1.2,3117.5,3117.2,0.96564217]
[1765769601594,1.2,3117.5,3117.3,3.20790427]
[1765769603298,1.2,3117.5,3117.4,0.03207801]
[1765769603499,1.2,3117.5,3117.3,3.23998331]
[1765769604214,1.2,3117.5,3117.3,3.20790427]
[1765769604397,1.2,3117.5,3117.4,0.73814605]
[1765769606023,1.2,3117.5,3117.4,3.20780137]
[1765769608229,1.2,3117.5,3117.2,6.41601436]
[1765769608413,0.507,3117.4,3117.2,6.41601436]
[1765769609899,1.2,3117.5,3117.3,0.03207904]
[1765769610105,1.2,3117.5,3117.4,7.65470241]
[1765769610311,1.2,3117.5,3117.4,8.74097337]
[1765769610834,1.2,3117.5,3117.4,4.29407233]
[1765769613034,1.202,3117.5,3117.4,4.29407233]
[1765769617434,1.202,3117.5,3117.4,3.20780137]
[1765769619142,1.6779,3117.5,3117.3,0.001]
[1765769621643,1.202,3117.5,3117.3,0.001]
[1765769625346,1.202,3117.5,3117.3,4.44818848]
[1765769625542,1.202,3117.5,3117.4,3.20780137]
[1765769625841,0.002,3117.5,3117.4,4.29419167]
[1765769628348,0.9363,3117.5,3117.4,3.20780137]
[1765769628546,0.4779,3117.5,3117.4,3.20780137]
[1765769628726,0.002,3117.5,3117.4,3.20780137]
[1765769630549,0.4779,3117.5,3117.3,0.001]
[1765769631045,1.2,3117.4,3117.3,0.001]
[1765769631247,1.2,3117.4,3117.3,0.64272202]
[1765769633241,1.2,3117.4,3117.3,3.85062629]
[1765769635165,2.6413,3117.4,3117.3,0.001]
[1765769638031,13.635708,3117.4,3117.3,0.001]
[1765769638231,16.84350937,3117.4,3117.3,0.001]
[1765769639055,34.91435037,3117.4,3117.3,0.001]
[1765769639261,22.72611537,3117.4,3117.3,0.001]
[1765769639664,23.30659066,3117.4,3117.3,0.001]
[1765769640157,30.71130966,3117.4,3117.3,0.001]
[1765769641027,36.83508066,3117.4,3117.3,0.001]
[1765769641229,12.51618566,3117.4,3117.3,0.001]
[1765769641640,16.96337414,3117.4,3117.3,0.001]
[1765769642068,15.52644243,3117.4,3117.3,0.001]
[1765769642629,15.52844243,3117.4,3117.3,0.001]
[1765769643040,38.85534443,3117.4,3117.3,0.001]
[1765769643532,43.30630686,3117.4,3117.3,0.001]
[1765769646043,49.63030686,3117.4,3117.3,0.001]
[1765769646239,49.75883144,3117.4,3117.3,0.001]
[1765769648064,49.75883144,3117.4,3116.5,0.001]
[1765769648065,0.98597929,3117.1,3116.5,0.001]
[1765769648232,21.91695331,3116.6,3116.5,0.001]
[1765769648564,13.92954131,3116.6,3116.5,0.001]
[1765769649062,13.42254131,3116.6,3116.5,0.001]
[1765769649261,36.90170931,3116.6,3116.5,0.001]
[1765769649434,38.91997308,3116.6,3116.5,0.001]
[1765769650368,42.12859786,3116.6,3116.5,0.001]
[1765769652964,48.45259786,3116.6,3116.5,0.001]
[1765769655538,48.58115342,3116.6,3116.5,0.001]
[1765769656762,0.405504,3116.3,3116.0,0.001]
[1765769656938,35.94070931,3116.1,3116.0,0.001]
[1765769657264,40.39167174,3116.1,3116.0,0.001]
[1765769657467,40.39167174,3116.1,3115.3,0.001]